bitfinex/quotes_SOLUSD_20220211
["timestamp","ask_amount","ask_price","bid_price","bid_amount"]
[1644566294872,14.1793,105.88,105.82,38.3223]
[1644566295075,38.5843,105.88,105.82,38.3223]
[1644566298873,43.3073,105.88,105.82,38.3223]
[1644566300178,38.5843,105.88,105.82,38.3223]
[1644566301075,38.5843,105.88,105.82,24.1428]
[1644566301278,14.182,105.86,105.82,24.1428]
[1644566301473,45.93909981,105.85,105.82,24.1188]
[1644566301674,2.5,105.84,105.82,24.1188]
[1644566301875,2.5,105.84,105.83,3.56439993]
[1644566302276,45.93909981,105.85,105.82,24.1188]
[1644566302474,45.93909981,105.85,105.81,14.1811]
[1644566304578,71.62269981,105.85,105.8,0.024]
[1644566304777,71.62269981,105.85,105.78,0.024]
[1644566304979,4.725,105.84,105.78,0.024]
[1644566306980,14.1861,105.83,105.78,0.024]
[1644566307181,14.1861,105.83,105.77,107.99673538]
[1644566307784,14.1845,105.84,105.77,110.38040329]
[1644566307981,69.20749981,105.85,105.78,0.024]
[1644566308186,69.20749981,105.85,105.79,14.1825]
[1644566308583,69.20749981,105.85,105.79,14.2065]
[1644566309184,45.93909981,105.85,105.79,16.59016791]
[1644566309583,45.93909981,105.85,105.79,16.84016791]
[1644566309784,29.97071696,105.88,105.79,16.84016791]
[1644566309986,29.97071696,105.88,105.82,14.179]
[1644566310387,29.97071696,105.88,105.82,14.203]
[1644566310388,23.9044,105.88,105.82,14.203]
[1644566310584,14.178,105.89,105.82,14.203]
[1644566310787,34.71653075,105.88,105.83,35.12870396]
[1644566310985,34.71653075,105.88,105.84,14.1763]
[1644566312186,24.76311696,105.9,105.84,14.1763]
[1644566312385,24.76311696,105.9,105.84,16.58396791]
[1644566312688,38.93971696,105.9,105.84,16.58396791]
[1644566312896,38.93971696,105.9,105.84,14.2003]
[1644566313287,42.97374057,105.89,105.84,14.2003]
[1644566314689,57.15124057,105.89,105.84,14.2003]
[1644566317296,42.97374057,105.89,105.84,14.2003]
[1644566318510,57.15134057,105.89,105.84,14.2003]
[1644566319015,57.15134057,105.89,105.84,0.024]
[1644566319211,57.15134057,105.89,105.83,0.024]
[1644566319412,4.723,105.88,105.83,0.024]
[1644566319611,14.1813,105.87,105.81,0.024]
[1644566319810,4.724,105.86,105.8,0.024]
[1644566320012,27.91918224,105.85,105.8,0.024]
[1644566320210,27.91918224,105.85,105.8,14.206]
[1644566320616,27.91918224,105.85,105.8,0.024]
[1644566320617,42.10218224,105.85,105.8,0.024]
[1644566320812,4.724,105.84,105.8,0.024]
[1644566321014,4.724,105.84,105.78,125.824]
[1644566321212,4.724,105.84,105.78,0.024]
[1644566321413,28.279,105.84,105.78,0.024]
[1644566321813,42.4641,105.84,105.78,0.024]
[1644566323415,37.7401,105.84,105.78,14.2087]
[1644566323814,42.10218224,105.85,105.78,14.2087]
[1644566324014,42.10218224,105.85,105.79,0.024]
[1644566324214,27.91918224,105.85,105.79,2.38366791]
[1644566324414,27.91918224,105.85,105.79,7.10866791]
[1644566324613,27.91918224,105.85,105.79,21.31486791]
[1644566324816,27.91918224,105.85,105.79,18.9312]
[1644566325115,27.91918224,105.85,105.79,14.2062]
[1644566325519,27.91918224,105.85,105.8,41.7005177]
[1644566325722,47.275,105.88,105.8,72.16538561]
[1644566325723,6.06531696,105.88,105.8,72.16538561]
[1644566325922,1.34131696,105.88,105.81,0.024]
[1644566326122,15.51911696,105.89,105.81,16.30766791]
[1644566326322,1.34131696,105.9,105.82,4.747]
[1644566326521,1.34131696,105.9,105.83,0.024]
[1644566326730,47.1814905,105.89,105.83,2.40766791]
[1644566326922,47.1814905,105.89,105.84,34.92801842]
[1644566327122,15.51771696,105.9,105.84,49.08021842]
[1644566327322,15.51771696,105.9,105.84,49.10421842]
[1644566328122,60.77989556,105.9,105.84,14.2002]
[1644566328325,4.722,105.89,105.84,0.024]
[1644566328523,14.1797,105.88,105.83,2.40766791]
[1644566329424,6.06331696,105.89,105.83,2.40766791]
[1644566329623,60.77999556,105.9,105.83,2.40766791]
[1644566329924,60.77999556,105.9,105.84,0.024]
[1644566331126,4.722,105.89,105.84,0.024]
[1644566331326,28.2232,105.89,105.84,0.024]
[1644566331523,42.4012,105.89,105.84,0.024]
[1644566331724,42.4012,105.89,105.83,14.2017]
[1644566332024,1.34131696,105.9,105.83,28.1017]
[1644566332224,1.34131696,105.91,105.84,2.40766791]
[1644566332426,25.02721696,105.92,105.86,14.1734]
[1644566332624,39.20141696,105.92,105.86,14.1734]
[1644566332825,45.0856151,105.91,105.86,14.1734]
[1644566333025,49.8076151,105.91,105.86,14.1734]
[1644566333430,51.14893206,105.91,105.84,23.9416]
[1644566333727,65.32383206,105.91,105.85,14.1754]
[1644566333929,60.60183206,105.91,105.85,14.1754]
[1644566334328,83.95153206,105.91,105.85,14.1754]
[1644566334730,82.6102151,105.91,105.85,14.1754]
[1644566335133,83.95153206,105.91,105.85,14.1754]
[1644566335533,83.95153206,105.91,105.84,38.1184]
[1644566337338,1.34131696,105.9,105.84,38.1184]
[1644566337539,14.1777,105.89,105.84,38.0944]
[1644566337741,14.1777,105.89,105.84,23.9176]
[1644566337941,14.1777,105.89,105.84,23.9416]
[1644566339747,14.1777,105.89,105.84,0.024]
[1644566340044,4.722,105.88,105.83,0.024]
[1644566340244,30.90661696,105.88,105.81,0.024]
[1644566340446,14.1814,105.86,105.79,0.024]
[1644566340847,25.80730771,105.85,105.79,46.09789952]
[1644566341049,25.80730771,105.85,105.8,14.1821]
[1644566342149,25.80730771,105.85,105.8,19.1561]
[1644566342651,25.80730771,105.85,105.8,18.9061]
[1644566344564,25.80730771,105.85,105.8,19.1561]
[1644566345165,14.1814,105.86,105.8,19.1561]
[1644566345366,14.1814,105.86,105.8,14.1821]
[1644566346167,34.81082117,105.85,105.8,14.1821]
[1644566347267,48.99372117,105.85,105.79,37.2164]
[1644566348270,48.99372117,105.85,105.79,37.4664]
[1644566348669,48.99372117,105.85,105.79,37.2164]
[1644566349871,48.99372117,105.85,105.79,37.4664]
[1644566353776,48.99372117,105.85,105.79,37.2164]
[1644566353975,48.99372117,105.85,105.79,37.1924]
[1644566355677,48.99372117,105.85,105.79,36.1924]
[1644566356377,34.81082117,105.85,105.79,52.71111062]
[1644566356579,34.81082117,105.85,105.79,55.11877853]
[1644566357187,1.34131696,105.88,105.79,61.11877853]
[1644566357379,25.94181696,105.88,105.8,4.725]
[1644566357680,14.18,105.87,105.82,14.1796]
[1644566357878,14.18,105.87,105.82,14.2036]
[1644566358080,56.98107809,105.87,105.82,14.2036]
[1644566358481,42.80107809,105.87,105.82,14.2036]
[1644566359481,38.7795,105.88,105.82,14.2036]
[1644566359683,38.7795,105.88,105.82,20.4536]
[1644566359684,24.6005,105.88,105.82,20.4536]
[1644566359882,24.6005,105.88,105.82,14.4536]
[1644566360382,66.10646407,105.88,105.82,14.4536]
[1644566361188,80.28486407,105.88,105.82,14.4536]
[1644566362486,80.28486407,105.88,105.82,14.2036]
[1644566363085,85.00786407,105.88,105.82,14.2036]
[1644566363487,86.34918103,105.88,105.82,14.2036]
[1644566363686,81.62618103,105.88,105.82,14.2036]
[1644566366392,86.34918103,105.88,105.82,14.2036]
[1644566366590,1.34131696,105.87,105.82,14.2036]
[1644566366790,14.1809,105.86,105.82,14.2036]
[1644566367290,14.1809,105.86,105.82,0.024]
[1644566367492,18.9049,105.86,105.81,14.1813]
[1644566368391,20.24621696,105.86,105.8,0.024]
[1644566368592,23.5013,105.85,105.8,0.024]
[1644566368792,14.1842,105.84,105.8,0.024]
[1644566368992,14.1842,105.84,105.78,0.024]
[1644566369292,29.38695874,105.83,105.79,14.184]
[1644566369493,29.38695874,105.83,105.79,14.208]
[1644566369692,29.38695874,105.83,105.79,14.184]
[1644566369895,14.1842,105.84,105.79,14.184]
[1644566370099,14.1842,105.84,105.79,14.208]
[1644566370994,37.684,105.85,105.79,18.933]
[1644566371193,36.18693659,105.86,105.79,21.31666791]
[1644566371393,6.06631696,105.88,105.79,43.83537853]
[1644566371594,1.34131696,105.88,105.79,43.83537853]
[1644566371793,1.34131696,105.88,105.79,52.76753173]
[1644566371995,1.34131696,105.88,105.79,70.42476579]
[1644566372599,61.98594824,105.89,105.79,71.75730167]
[1644566373796,61.98594824,105.89,105.79,86.00320167]
[1644566374196,1.34131696,105.89,105.79,142.97320167]
[1644566374495,6.06531696,105.9,105.83,14.1737]
[1644566374697,4.724,105.9,105.83,23.3397]
[1644566374895,2.68305242,105.94,105.84,18.65237853]
[1644566374896,1.34131696,105.92,105.84,18.65237853]
[1644566375098,1.34131696,105.92,105.85,34.25496789]
[1644566375300,1.34131696,105.92,105.85,42.8886358]
[1644566375699,1.34131696,105.92,105.86,14.1725]
[1644566375900,1.34131696,105.92,105.86,14.4225]
[1644566376398,1.34131696,105.92,105.86,14.1725]
[1644566376601,1.34131696,105.91,105.86,14.1725]
[1644566376800,6.06331696,105.91,105.86,14.1725]
[1644566376998,1.34131696,105.91,105.86,14.1725]
[1644566377602,0.58619345,105.91,105.86,14.1725]
[1644566378499,14.76069345,105.91,105.86,14.1725]
[1644566379100,14.26069345,105.91,105.86,14.1725]
[1644566379302,4.722,105.9,105.83,23.6098]
[1644566379500,52.4694,105.92,105.82,0.024]
[1644566379702,4.723,105.89,105.82,0.024]
[1644566379900,4.723,105.91,105.82,0.024]
[1644566380100,27.28999889,105.88,105.82,35.83965699]
[1644566380303,32.01299889,105.88,105.82,50.01985699]
[1644566380500,27.28999889,105.88,105.82,50.01985699]
[1644566381600,14.1805,105.87,105.82,50.01985699]
[1644566382001,27.28999889,105.88,105.82,50.01985699]
[1644566383101,27.28999889,105.88,105.82,14.2042]
[1644566383301,27.28999889,105.88,105.82,14.1802]
[1644566383705,41.46899889,105.88,105.82,14.1802]
[1644566383903,41.46899889,105.88,105.82,14.2042]
[1644566384104,41.46899889,105.88,105.82,14.1802]
[1644566384305,41.46899889,105.88,105.82,0.024]
[1644566384506,41.46899889,105.88,105.81,14.1816]
[1644566384704,41.46899889,105.88,105.82,0.024]
[1644566384705,14.1827,105.86,105.82,0.024]
[1644566384904,14.1827,105.86,105.8,0.024]
[1644566385341,14.1827,105.86,105.8,42.47911703]
[1644566385509,14.1827,105.86,105.8,56.66181703]
[1644566385705,14.1827,105.86,105.8,62.66181703]
[1644566386106,14.1827,105.86,105.8,20.2067]
[1644566387607,14.1827,105.86,105.8,14.2067]
[1644566392119,14.1827,105.86,105.8,0.024]
[1644566392519,4.724,105.85,105.78,0.024]
[1644566392724,14.1866,105.83,105.77,0.024]
[1644566393145,35.04962291,105.82,105.77,0.024]
[1644566393340,35.04962291,105.82,105.77,14.2103]
[1644566398647,14.1845,105.84,105.77,14.2103]
[1644566398848,4.725,105.88,105.78,0.024]
[1644566399049,4.725,105.9,105.8,14.1812]
[1644566399249,23.6223,105.89,105.81,0.024]
[1644566399449,23.6223,105.89,105.81,2.40766791]
[1644566399649,23.6223,105.89,105.82,0.024]
[1644566399650,41.44108696,105.88,105.82,0.024]
[1644566399850,41.44108696,105.88,105.82,2.40766791]
[1644566400454,55.62018696,105.88,105.82,0.024]
[1644566400652,4.723,105.87,105.82,0.024]
[1644566401753,18.9038,105.87,105.82,0.024]
[1644566402653,14.1808,105.87,105.82,0.024]
[1644566407362,14.1808,105.87,105.81,14.1808]
[1644566407565,18.9053,105.86,105.81,14.2048]
[1644566407762,14.1813,105.86,105.82,0.024]
[1644566408462,4.723,105.87,105.82,0.024]
[1644566408666,18.9034,105.87,105.82,0.024]
[1644566411789,18.9034,105.87,105.81,14.17801376]
[1644566419498,14.1804,105.87,105.81,14.17801376]
[1644566420799,4.724,105.86,105.79,23.1479]
[1644566420999,14.1826,105.85,105.79,23.1479]
[1644566421297,14.1826,105.85,105.77,16.26871062]
[1644566421499,34.17683585,105.84,105.77,16.26871062]
[1644566421899,29.45183585,105.84,105.77,16.26871062]
[1644566422099,29.45183585,105.84,105.76,47.44085487]
[1644566422302,29.45183585,105.84,105.76,53.44085487]
[1644566422703,14.1859,105.83,105.77,14.1859]
[1644566424205,14.1859,105.83,105.76,4.725]
[1644566424405,4.726,105.82,105.76,4.725]
[1644566424606,14.1915,105.81,105.71,79.30787017]
[1644566424808,45.34593039,105.8,105.71,74.58187017]
[1644566425007,54.51493039,105.8,105.71,74.58187017]
[1644566426213,14.1915,105.79,105.73,14.1912]
[1644566426409,14.1915,105.79,105.71,26.28536791]
[1644566426910,14.1915,105.79,105.71,23.9017]
[1644566427111,14.1915,105.79,105.7,4.727]
[1644566427310,14.1915,105.79,105.71,0.024]
[1644566427509,14.1958,105.76,105.71,0.024]
[1644566427708,30.27399242,105.75,105.71,0.024]
[1644566427910,30.27399242,105.75,105.69,31.67581742]
[1644566428909,44.47069242,105.75,105.69,31.67581742]
[1644566429310,44.47069242,105.75,105.69,17.48001742]
[1644566429710,44.47069242,105.75,105.69,2.40766791]
[1644566437114,44.47069242,105.75,105.69,0.024]
[1644566439123,54.52769242,105.75,105.69,0.024]
[1644566439320,4.729,105.74,105.69,0.024]
[1644566439517,14.201,105.73,105.69,0.024]
[1644566439717,14.201,105.73,105.67,4.729]
[1644566439718,4.729,105.72,105.67,4.753]
[1644566439918,12.154,105.72,105.65,0.024]
[1644566440119,38.36383419,105.71,105.65,0.024]
[1644566440618,38.36383419,105.71,105.66,4.731]
[1644566441720,38.36383419,105.71,105.66,18.9306]
[1644566441920,38.36383419,105.71,105.66,14.1996]
[1644566443420,4.731,105.73,105.67,41.77534477]
[1644566443621,4.73,105.77,105.67,55.99754477]
[1644566443819,53.4087,105.78,105.68,24.7553]
[1644566444020,48.6797,105.78,105.68,24.7553]
[1644566444420,40.00756844,105.77,105.68,25.0053]
[1644566444622,4.729,105.76,105.68,25.0053]
[1644566445620,18.925,105.76,105.69,14.1954]
[1644566445921,14.196,105.76,105.7,0.024]
[1644566446120,37.6407,105.76,105.69,0.024]
[1644566446721,37.6407,105.76,105.7,14.1952]
[1644566446922,37.6407,105.76,105.71,38.47441233]
[1644566447222,44.73656844,105.77,105.71,0.024]
[1644566447422,40.00756844,105.77,105.69,0.024]
[1644566448222,40.00756844,105.77,105.69,40.99337725]
[1644566448422,40.00756844,105.77,105.7,0.024]
[1644566448623,4.728,105.76,105.71,14.1939]
[1644566448825,4.728,105.76,105.71,14.2179]
[1644566449024,4.728,105.76,105.71,0.024]
[1644566449228,4.728,105.76,105.7,23.0247]
[1644566449427,40.00756844,105.77,105.7,23.0247]
[1644566449628,40.00756844,105.77,105.71,0.024]
[1644566450229,54.20246844,105.77,105.71,0.024]
[1644566452132,14.1974,105.75,105.68,0.024]
[1644566452332,30.88535437,105.73,105.68,0.024]
[1644566452531,30.88535437,105.73,105.67,23.7184]
[1644566452733,35.61535437,105.73,105.67,23.7184]
[1644566452947,30.88535437,105.73,105.67,23.7184]
[1644566454848,45.08535437,105.73,105.67,37.9184]
[1644566458350,45.08535437,105.73,105.68,39.3960371]
[1644566458549,45.08535437,105.73,105.68,39.4200371]
[1644566458749,4.73,105.75,105.68,39.4200371]
[1644566458949,4.73,105.75,105.68,53.6187371]
[1644566459148,22.5426,105.76,105.68,53.6187371]
[1644566459750,36.88341887,105.75,105.68,53.6187371]
[1644566462055,18.9236,105.77,105.68,53.6187371]
[1644566462255,14.1946,105.77,105.69,24.2005]
[1644566462454,14.1946,105.77,105.71,14.1947]
[1644566462753,4.729,105.79,105.71,20.4687]
[1644566462954,4.729,105.79,105.72,44.9022227]
[1644566463153,43.52129313,105.81,105.73,0.024]
[1644566463353,43.52129313,105.81,105.74,4.727]
[1644566463354,38.79329313,105.81,105.74,4.727]
[1644566463556,38.79329313,105.81,105.75,0.024]
[1644566463760,38.79329313,105.81,105.76,14.1878]
[1644566464255,38.79329313,105.81,105.76,59.97758444]
[1644566464456,38.79329313,105.81,105.76,68.92258444]
[1644566464855,14.1881,105.82,105.76,68.92258444]
[1644566465456,47.0028,105.87,105.76,68.92258444]
[1644566465658,4.725,105.86,105.76,76.03125235]
[1644566465857,45.32992793,105.85,105.76,82.28125235]
[1644566466060,45.32992793,105.85,105.77,4.725]
[1644566466258,45.32992793,105.85,105.79,14.1835]
[1644566466460,45.32992793,105.85,105.79,22.3215]
[1644566466759,45.32992793,105.85,105.8,43.22735789]
[1644566467460,14.1838,105.86,105.8,43.22735789]
[1644566467660,4.724,105.85,105.8,43.22735789]
[1644566468360,43.86193966,105.85,105.8,43.22735789]
[1644566468566,43.86193966,105.85,105.79,14.1835]
[1644566468761,57.04603966,105.85,105.79,14.1835]
[1644566468962,53.32203966,105.85,105.79,14.1835]
[1644566469663,53.32203966,105.85,105.79,51.79408912]
[1644566470165,51.7278,105.87,105.79,51.79408912]
[1644566470363,26.29348839,105.91,105.79,64.47375703]
[1644566470364,4.725,105.89,105.79,64.47375703]
[1644566470565,4.724,105.9,105.79,70.47375703]
[1644566470762,50.5435,105.92,105.79,70.47375703]
[1644566470963,50.5435,105.92,105.8,48.8764]
[1644566471167,47.30031094,105.91,105.82,14.1795]
[1644566471365,4.722,105.9,105.82,14.1795]
[1644566472770,14.1792,105.89,105.77,27.2886]
[1644566472967,4.724,105.88,105.77,75.3653]
[1644566473167,4.724,105.88,105.77,76.6433]
[1644566473168,7.10766791,105.88,105.77,76.6433]
[1644566473367,2.38366791,105.87,105.77,70.6433]
[1644566473568,4.725,105.86,105.77,48.0767]
[1644566473771,23.59261187,105.85,105.76,48.47262882]
[1644566473973,14.1877,105.83,105.76,62.66032882]
[1644566474570,14.1877,105.83,105.76,14.1877]
[1644566475473,16.57136791,105.83,105.75,14.213]
[1644566475672,46.35035076,105.81,105.75,14.213]
[1644566475872,60.54055076,105.81,105.75,14.213]
[1644566476274,60.54055076,105.81,105.75,0.024]
[1644566478778,14.1927,105.79,105.73,0.024]
[1644566478975,14.1927,105.79,105.71,0.024]
[1644566479577,14.1927,105.79,105.72,14.193]
[1644566479776,4.727,105.78,105.73,0.024]
[1644566479976,4.727,105.78,105.72,14.193]
[1644566479977,14.1935,105.78,105.72,14.193]
[1644566480478,24.54257205,105.77,105.71,14.2184]
[1644566480679,29.27057205,105.77,105.72,0.024]
[1644566480879,24.54257205,105.77,105.7,0.024]
[1644566481479,14.1962,105.76,105.7,0.024]
[1644566481686,18.9252,105.76,105.7,0.024]
[1644566481879,18.9252,105.76,105.69,0.024]
[1644566482082,18.9252,105.76,105.67,0.024]
[1644566482883,18.9252,105.76,105.68,14.1987]
[1644566483081,14.1962,105.76,105.69,0.024]
[1644566483379,14.1998,105.74,105.69,0.024]
[1644566483580,14.1998,105.74,105.67,0.024]
[1644566483782,18.9298,105.74,105.67,0.024]
[1644566483979,46.35035076,105.73,105.67,0.024]
[1644566484879,46.35035076,105.73,105.67,14.2238]
[1644566485380,60.55025076,105.73,105.67,14.2238]
[1644566485580,4.73,105.77,105.67,14.2238]
[1644566485779,4.73,105.77,105.67,14.1998]
[1644566485981,4.729,105.79,105.68,0.024]
[1644566486383,2.38366791,105.78,105.68,0.024]
[1644566486605,43.9457544,105.77,105.68,0.024]
[1644566487207,14.1975,105.75,105.67,0.024]
[1644566487406,4.729,105.74,105.65,0.024]
[1644566487605,14.1975,105.75,105.66,7.11366791]
[1644566487804,14.1975,105.75,105.67,0.024]
[1644566488005,31.67616841,105.73,105.67,0.024]
[1644566488205,31.67616841,105.73,105.65,47.94002281]
[1644566488407,31.67616841,105.73,105.65,48.19002281]
[1644566488808,31.67616841,105.73,105.65,54.19002281]
[1644566489208,31.67616841,105.73,105.65,6.024]
[1644566489407,31.67616841,105.73,105.65,0.024]
[1644566489608,4.73,105.75,105.65,0.024]
[1644566489809,7.11366791,105.78,105.66,2.38366791]
[1644566490007,2.38366791,105.78,105.67,0.024]
[1644566490611,35.12914403,105.77,105.67,36.77714512]
[1644566490808,35.12914403,105.77,105.68,0.024]
[1644566491710,14.1986,105.75,105.68,14.2214]
[1644566492708,4.729,105.74,105.68,14.2214]
[1644566492908,4.729,105.74,105.68,14.1974]
[1644566493308,35.76377878,105.73,105.68,52.22653544]
[1644566493508,35.76377878,105.73,105.68,14.1974]
[1644566493708,35.76377878,105.73,105.67,0.024]
[1644566494109,4.73,105.72,105.66,0.024]
[1644566494316,4.73,105.72,105.64,0.024]
[1644566494915,14.2038,105.71,105.62,0.024]
[1644566496321,4.731,105.7,105.62,0.024]
[1644566496519,14.2076,105.68,105.62,0.024]
[1644566496720,4.731,105.7,105.62,0.024]
[1644566497521,35.12914403,105.69,105.62,0.024]
[1644566497724,49.33494403,105.69,105.62,14.2306]
[1644566498924,4.732,105.68,105.62,14.2306]
[1644566499323,18.9389,105.68,105.62,14.2306]
[1644566499723,18.9389,105.68,105.62,0.024]
[1644566501926,35.12914403,105.69,105.62,14.2305]
[1644566502424,35.12914403,105.69,105.62,14.4805]
[1644566503826,35.12914403,105.69,105.63,4.732]
[1644566504026,35.12914403,105.69,105.64,14.2039]
[1644566505829,35.12914403,105.69,105.63,4.732]
[1644566505830,49.33474403,105.69,105.63,4.732]
[1644566508532,49.33474403,105.69,105.63,14.2056]
[1644566509033,49.33474403,105.69,105.62,0.024]
[1644566509733,49.33474403,105.69,105.62,14.2308]
[1644566511837,35.12914403,105.69,105.62,21.34646791]
[1644566512238,35.12914403,105.69,105.62,21.59646791]
[1644566512441,35.12914403,105.69,105.62,21.34646791]
[1644566512857,35.12914403,105.69,105.62,21.59646791]
[1644566513059,35.12914403,105.69,105.62,22.86446791]
[1644566513457,35.12914403,105.69,105.62,16.86446791]
[1644566513858,14.2038,105.7,105.62,16.86446791]
[1644566514157,14.2038,105.7,105.65,14.2028]
[1644566514657,38.765,105.71,105.65,14.2028]
[1644566514858,14.2023,105.71,105.66,42.79390299]
[1644566515062,14.2023,105.71,105.66,57.01910299]
[1644566515260,14.2023,105.71,105.66,56.99510299]
[1644566515762,56.8278,105.72,105.66,56.99510299]
[1644566515959,28.4904,105.72,105.66,56.99510299]
[1644566516560,4.73,105.74,105.67,2.38366791]
[1644566516761,4.73,105.76,105.69,14.1963]
[1644566516961,14.1945,105.77,105.69,14.1963]
[1644566517167,1.3390082,105.78,105.7,7.11266791]
[1644566517362,1.3390082,105.79,105.7,20.68666791]
[1644566517564,1.3390082,105.79,105.71,41.23290742]
[1644566517762,6.0670082,105.79,105.72,4.728]
[1644566518164,6.0670082,105.79,105.71,41.23290742]
[1644566518565,6.0670082,105.79,105.71,47.23290742]
[1644566518764,1.3390082,105.78,105.72,14.1918]
[1644566518966,20.2588082,105.79,105.72,14.1918]
[1644566519766,18.9198,105.79,105.72,20.1918]
[1644566520173,14.1918,105.79,105.72,20.1918]
[1644566520369,76.41025296,105.8,105.72,20.1918]
[1644566521371,76.41025296,105.8,105.72,14.1918]
[1644566521770,1.3390082,105.79,105.72,14.1918]
[1644566521971,4.727,105.78,105.72,14.1918]
[1644566523473,15.5315082,105.79,105.72,14.1918]
[1644566524573,14.1925,105.79,105.72,14.1918]
[1644566524775,15.5315082,105.79,105.72,14.1918]
[1644566525873,4.727,105.78,105.72,14.1918]
[1644566527478,51.40314476,105.8,105.72,28.0484]
[1644566527879,14.1921,105.79,105.72,28.0484]
[1644566528079,51.40314476,105.8,105.72,28.0484]
[1644566528879,66.93275296,105.8,105.72,28.0484]
[1644566529081,69.31642087,105.8,105.71,4.728]
[1644566529280,123.269761,105.79,105.68,0.024]
[1644566529479,1.3390082,105.77,105.67,0.024]
[1644566529780,4.729,105.76,105.68,0.024]
[1644566529979,47.66737805,105.76,105.67,34.24530802]
[1644566530280,33.46837805,105.76,105.68,14.2229]
[1644566530685,33.46837805,105.76,105.68,20.2229]
[1644566530880,6.0680082,105.79,105.68,19.2229]
[1644566531081,1.3390082,105.78,105.68,43.9202]
[1644566531682,1.3390082,105.78,105.68,44.1702]
[1644566531883,52.83168687,105.77,105.69,2.38366791]
[1644566532084,52.83168687,105.77,105.71,14.1946]
[1644566532683,52.83168687,105.77,105.69,4.728]
[1644566532883,52.83168687,105.77,105.68,24.6973]
[1644566533085,14.1971,105.75,105.69,14.1964]
[1644566533283,14.1971,105.75,105.69,59.21026762]
[1644566534386,14.1971,105.75,105.68,38.896]
[1644566535086,14.1971,105.75,105.68,14.1987]
[1644566535487,14.1971,105.75,105.69,39.62663037]
[1644566535688,14.1971,105.75,105.68,14.1987]
[1644566536087,4.729,105.74,105.66,14.2008]
[1644566536287,14.2035,105.72,105.63,47.3383]
[1644566536487,4.731,105.71,105.63,47.3383]
[1644566536687,32.25583594,105.72,105.63,48.62603558]
[1644566536887,4.731,105.71,105.63,48.62603558]
[1644566537688,4.731,105.71,105.64,14.2032]
[1644566537888,52.076,105.73,105.64,14.4532]
[1644566538091,47.345,105.73,105.64,14.2032]
[1644566538292,47.345,105.73,105.64,20.2032]
[1644566538692,14.2024,105.71,105.64,14.2032]
[1644566538890,53.4066082,105.75,105.65,16.11600631]
[1644566539113,48.3039082,105.76,105.68,14.1986]
[1644566539312,23.8912,105.76,105.68,14.1986]
[1644566539612,23.8912,105.76,105.69,2.38366791]
[1644566539812,35.15344986,105.75,105.69,38.70329308]
[1644566540012,35.15344986,105.75,105.68,14.1985]
[1644566540213,36.49245806,105.75,105.68,14.1985]
[1644566540412,35.15344986,105.75,105.68,14.1985]
[1644566540613,35.15344986,105.75,105.68,16.58216791]
[1644566541014,35.15344986,105.75,105.68,50.94902541]
[1644566541816,49.35014986,105.75,105.68,50.94902541]
[1644566542515,49.35014986,105.75,105.68,48.5653575]
[1644566542715,50.68915806,105.75,105.68,48.5653575]
[1644566542915,14.1967,105.75,105.68,48.5653575]
[1644566543117,29.9592082,105.76,105.68,48.5653575]
[1644566543118,6.0680082,105.76,105.69,2.38366791]
[1644566543318,1.3390082,105.76,105.71,14.1934]
[1644566543515,31.97503013,105.8,105.71,14.1934]
[1644566543516,1.3390082,105.78,105.71,14.1934]
[1644566543717,1.3390082,105.78,105.72,2.38366791]
[1644566543917,1.3390082,105.78,105.73,42.73610362]
[1644566544317,1.3390082,105.78,105.73,45.11977153]
[1644566544919,1.3390082,105.78,105.73,42.73610362]
[1644566545621,1.3390082,105.79,105.73,59.31217153]
[1644566546022,1.3390082,105.8,105.73,66.33617153]
[1644566546223,1.3390082,105.81,105.73,72.58617153]
[1644566546424,1.3390082,105.82,105.73,72.58617153]